Cogmind - Beta 15 --- EXPLORER MODE // 2025.05.24 @ 23:05:36 Player: Apathy Deity Result: Escaped! Performance ------------- Evolutions (9) 4500 Regions Visited (25) 5000 Robots Destroyed (207) 1035 Value Destroyed (15045) 15045 Prototype IDs (32) 640 Alien Tech Used (0) 0 Bonus (22950) 22950 TOTAL SCORE: 49170 Bonus ------- High Alert Combat Kills 699 Follower Combat Kills 10733 Entered Garrisons 2200 Used RIF Installer 6500 Win 3000 Friendly Fire -182 Cogmind --------- Core Integrity 1570/1600 Matter 180/300 Energy 592/600 System Corruption 0% Temperature Cool (0) Movement Rolling (160) Ox4 Location To Epsilon Eridani Parts ------- > --- POWER (2) -------- Quantum Reactor Reinforced Quantum Reactor > --- PROPULSION (4) --- Armored Huge Wheel Armored Huge Wheel > --- UTILITY (18) ----- Advanced Heat Sink Advanced Heat Sink Advanced Heat Sink Advanced Heat Sink Advanced Coolant Injector Cargo Storage Unit Advanced Visual Processing Unit Quantum Capacitor Centrium Heavy Armor Plating Graphene Brace Relay Coupler [NC] (47) Relay Coupler [C] (9) Relay Coupler [Sentry] (35) Relay Coupler [Specialist] (30) Advanced Corruption Screen > --- WEAPON (2) ------- Enhanced Nova Cannon Advanced Remote Datajack > --- INVENTORY (30) --- Fusion Reactor Particle Reactor Armored Huge Wheel Advanced Heat Sink Centrium Heavy Armor Plating Relay Coupler [NC] (69) Relay Coupler [C] (55) Relay Coupler [C] (67) Relay Coupler [C] (67) Relay Coupler [Cutter] (62) Relay Coupler [Sentry] (55) Relay Coupler [Demolisher] (46) Relay Coupler [Hunter] (44) Relay Coupler [Proto] (27) Relay Coupler [Proto] (27) Relay Coupler [Proto] (27) Relay Coupler [Proto] (26) Advanced Corruption Screen Compact HERF Cannon Enhanced Nova Cannon Helical Railgun Helical Railgun Helical Railgun Multirail Hellfire Missile Launcher Advanced Remote Datajack Peak State ------------ > --- POWER ------------ Quantum Reactor Reinforced Quantum Reactor > --- PROPULSION ------- Armored Huge Wheel Armored Huge Wheel > --- UTILITY ---------- Advanced Heat Sink Advanced Heat Sink Advanced Heat Sink Advanced Heat Sink Advanced Coolant Injector Cargo Storage Unit Advanced Visual Processing Unit Quantum Capacitor Centrium Heavy Armor Plating Graphene Brace Relay Coupler [NC] Relay Coupler [C] Relay Coupler [Sentry] Relay Coupler [Specialist] Advanced Corruption Screen > --- WEAPON ----------- Multirail Advanced Remote Datajack > --- INVENTORY -------- Fusion Reactor Particle Reactor Armored Huge Wheel Advanced Heat Sink Centrium Heavy Armor Plating Relay Coupler [NC] Relay Coupler [C] Relay Coupler [C] Relay Coupler [C] Relay Coupler [Cutter] Relay Coupler [Sentry] Relay Coupler [Demolisher] Relay Coupler [Hunter] Relay Coupler [Proto] Relay Coupler [Proto] Relay Coupler [Proto] Relay Coupler [Proto] Advanced Corruption Screen Compact HERF Cannon Enhanced Nova Cannon Enhanced Nova Cannon Helical Railgun Helical Railgun Helical Railgun Hellfire Missile Launcher Advanced Remote Datajack [Rating: 172] Favorites ----------- Power Light Antimatter Reactor Engine Cooled Deuterium Engine Power Core Micro Nuclear Core Reactor Light Antimatter Reactor Propulsion Armored Huge Wheel Wheel Armored Huge Wheel Utility Advanced Heat Sink Device Advanced Heat Sink Storage Cargo Storage Unit Processor Visual Processing Unit Hackware Relay Coupler [Sentry] Protection Improved Utility Shielding Weapon Advanced Remote Datajack Energy Gun EM Pulse Gun Energy Cannon Nova Cannon Ballistic Gun Gauss Rifle Ballistic Cannon Enhanced Gauss Cannon Launcher Hellfire Missile Launcher Special Weapon Advanced Remote Datajack Build | -11 -10 -9 -8 -8 -8 -8 -7 -7 -6 -6 -5 -5 -5 -5 -4 -4 -3 -3 -3 -3 -2 -2 -2 -2 -1 ------- Run | Yrd Mat Mat Mat Gar Mat Gar Fac Gar Fac Gar Fac Gar Fac Gar Fac Gar Res Gar Res Gar Res Gar Res Gar Acc Slots Evolved 19 | . 1 2 2 . . . 2 . 2 . 2 . . . 2 . 2 . . . 2 . . . 2 Power 1 | . . . . . . . . . 1 . . . . . . . . . . . . . . . . Propulsion 2 | . . . 1 . . . . . . . . . . . . . 1 . . . . . . . . Utility 16 | . 1 2 1 . . . 2 . 1 . 2 . . . 2 . 1 . . . 2 . . . 2 Weapon . | . . . . . . . . . . . . . . . . . . . . . . . . . . Parts Attached 160 | 8 2 7 17 10 5 11 7 1 6 6 5 5 . 6 7 11 4 5 1 5 4 8 3 7 9 Power 16 | 1 . 2 2 1 . 1 1 . 1 1 . . . . 2 . . 1 . . 2 1 . . . Engine 6 | 1 . 2 1 1 . . 1 . . . . . . . . . . . . . . . . . . Core 2 | . . . 1 . . 1 . . . . . . . . . . . . . . . . . . . Reactor 8 | . . . . . . . . . 1 1 . . . . 2 . . 1 . . 2 1 . . . Propulsion 16 | 2 . 1 4 1 2 . 1 . . . . . . . 1 1 1 . . . . . 1 . 1 Treads . | . . . . . . . . . . . . . . . . . . . . . . . . . . Leg . | . . . . . . . . . . . . . . . . . . . . . . . . . . Wheel 16 | 2 . 1 4 1 2 . 1 . . . . . . . 1 1 1 . . . . . 1 . 1 Hover . | . . . . . . . . . . . . . . . . . . . . . . . . . . Flight . | . . . . . . . . . . . . . . . . . . . . . . . . . . Utility 86 | 2 2 4 6 3 2 7 4 . 3 3 3 4 . 5 4 4 2 3 . 5 2 6 2 6 4 Device 17 | . . 1 2 . . 1 1 . . . . . . . 2 1 2 . . . 1 1 . 3 2 Storage 5 | 1 1 2 . . . . 1 . . . . . . . . . . . . . . . . . . Processor 8 | . 1 . 2 . . 1 . . . . 1 . . . 1 . . . . . . . 1 . 1 Hackware 40 | . . . 1 . 1 4 1 . 2 3 2 3 . 3 1 2 . 3 . 5 . 5 1 3 . Protection 16 | 1 . 1 1 3 1 1 1 . 1 . . 1 . 2 . 1 . . . . 1 . . . 1 Artifact . | . . . . . . . . . . . . . . . . . . . . . . . . . . Weapon 42 | 3 . . 5 5 1 3 1 1 2 2 2 1 . 1 . 6 1 1 1 . . 1 . 1 4 Energy Gun 4 | 2 . . 2 . . . . . . . . . . . . . . . . . . . . . . Energy Cannon 5 | . . . . . . . . . . . . . . . . . 1 . 1 . . 1 . . 2 Ballistic Gun 14 | 1 . . 2 5 . 1 . . . 1 . . . . . 3 . . . . . . . . 1 Ballistic Cannon 11 | . . . 1 . . 1 1 . 1 . 2 1 . 1 . 3 . . . . . . . . . Launcher 2 | . . . . . . 1 . . . . . . . . . . . . . . . . . . 1 Special Weapon 6 | . . . . . 1 . . 1 1 1 . . . . . . . 1 . . . . . 1 . Impact Weapon . | . . . . . . . . . . . . . . . . . . . . . . . . . . Slashing Weapon . | . . . . . . . . . . . . . . . . . . . . . . . . . . Piercing Weapon . | . . . . . . . . . . . . . . . . . . . . . . . . . . Special Melee Weapon . | . . . . . . . . . . . . . . . . . . . . . . . . . . Unidentified Prototypes 3 | . . . . 1 . . . . . 1 . . . . . . . . . . . . . . 1 Corrupted Parts 1 | . . . . . . . . 1 . . . . . . . . . . . . . . . . . System Corruption 1 | . . . . . . . . 1 . . . . . . . . . . . . . . . . . Parts Lost 16 | . . 1 6 . . 3 1 . . . . . . . 1 2 . . . . . . . 1 1 Power 2 | . . . 1 . . 1 . . . . . . . . . . . . . . . . . . . Propulsion 4 | . . . 2 . . . 1 . . . . . . . . 1 . . . . . . . . . Utility 8 | . . . 2 . . 2 . . . . . . . . 1 1 . . . . . . . 1 1 Weapon 2 | . . 1 1 . . . . . . . . . . . . . . . . . . . . . . Highest Loss Streak 2 | . . 1 2 . . 2 1 . . . . . . . 1 1 . . . . . . . 1 1 To Critical Strikes . | . . . . . . . . . . . . . . . . . . . . . . . . . . Average Backups 25 | 3 11 15 21 24 23 22 23 27 27 27 26 25 26 25 26 25 26 27 26 25 24 26 26 25 25 Power 2 | . 1 2 3 2 2 2 2 2 1 2 2 2 2 2 2 2 2 2 2 2 2 2 2 2 2 Propulsion 3 | . 4 4 4 4 2 2 3 4 4 4 4 4 4 4 4 3 2 2 2 2 2 2 2 2 1 Utility 14 | 1 3 4 6 12 13 11 11 16 16 16 13 13 15 15 14 14 14 15 16 16 15 16 16 16 15 Weapon 4 | . 1 3 5 4 5 6 5 4 4 3 5 4 4 3 4 4 7 7 5 4 4 4 5 4 6 Tool/Special . | . . . . . . . . . . . . . . . . . . . . . . . . . . Unused Backups 102 | . . 7 2 12 6 . 3 5 . 6 2 6 . 4 3 5 . 2 7 5 2 1 . 1 23 Power 8 | . . 2 . . . . 1 . . 2 . . . . 1 . . . . . . . . . 2 Propulsion 9 | . . . . . 4 . . . . . . . . . 1 . . . 3 . . . . . 1 Utility 59 | . . 4 . 10 1 . 1 4 . 1 1 5 . 4 1 2 . 1 1 4 2 1 . . 16 Weapon 22 | . . 1 1 1 1 . 1 1 . 2 1 1 . . . 3 . 1 3 1 . . . 1 3 Tool/Special 4 | . . . 1 1 . . . . . 1 . . . . . . . . . . . . . . 1 Average Slot Usage (%) 84 | . 100 94 94 100 94 89 87 85 86 87 87 87 88 86 80 84 76 76 77 77 75 78 79 78 79 Engine 2 | . 12 10 6 8 8 4 3 7 6 1 . . . . . . . . . . . . . . . Reactor 6 | . . . . . . . . . 6 10 11 11 11 11 10 10 9 8 9 9 8 8 8 8 7 Wheel 12 | . 25 20 23 25 19 16 13 14 12 12 11 11 11 11 10 10 8 9 9 9 8 8 8 7 6 Device 9 | . . 6 8 8 1 . 2 7 1 3 5 5 5 5 7 10 10 13 13 13 16 19 17 17 24 Storage 5 | . 12 10 8 8 8 8 7 7 6 6 5 5 5 5 5 5 4 4 4 4 4 4 4 4 3 Processor 8 | . 12 10 10 16 16 11 7 7 6 6 6 11 11 11 12 10 7 4 4 4 4 4 4 4 6 Hackware 20 | . . . 6 8 14 26 31 28 29 27 31 26 27 25 20 20 18 18 18 18 16 16 18 20 16 Protection 6 | . 12 18 10 8 8 2 4 . 5 6 5 5 5 5 5 8 9 9 9 9 8 8 8 6 3 Energy Cannon 1 | . . . . . . . . . . . . . . . . . 1 4 4 4 4 4 4 4 2 Ballistic Gun 3 | . 4 8 14 16 15 12 7 7 2 . . . . . . 2 . . . . . . . . . Ballistic Cannon 1 | . . . . . . . . . 3 5 5 5 5 5 5 2 2 . . . . . . . . Special Weapon 3 | . . . . . . 2 6 6 6 6 5 5 5 5 5 4 4 4 4 4 4 4 4 4 3 Peak Build Rating 172 | 7 9 14 27 37 41 49 55 55 65 82 87 88 88 102 112 112 126 126 127 133 134 141 141 142 172 Average Rating 88 | 4 8 12 21 32 39 43 51 54 62 74 83 86 88 91 106 108 120 125 126 126 130 138 138 139 164 On Entrance 79 | . 7 9 14 27 37 41 47 54 54 64 79 87 88 88 102 112 112 125 126 127 126 130 141 138 142 Naked Turns . | . . . . . . . . . . . . . . . . . . . . . . . . . . Heaviest Build 241 | 19 30 94 98 100 102 102 163 165 182 195 196 196 196 212 212 218 210 214 214 214 222 239 239 238 241 Greatest Support 56 | 26 26 32 36 30 40 40 44 44 44 44 44 44 44 44 44 44 56 56 56 56 56 56 56 56 56 Greatest Overweight (x) 4 | 1 1 3 4 3 4 2 3 3 4 4 4 4 4 4 4 4 3 3 3 3 3 4 4 4 4 Average Overweight (x) 3 | . . 1 3 3 2 2 2 3 4 4 4 4 4 4 4 4 3 3 3 3 3 3 4 4 4 Largest Inventory Capacity 30 | 10 15 25 25 25 25 25 30 30 30 30 30 30 30 30 30 30 30 30 30 30 30 30 30 30 30 Average Capacity 28 | 8 13 19 25 25 25 25 26 30 30 30 30 30 30 30 30 30 30 30 30 30 30 30 30 30 30 Most Carried 30 | 9 15 18 25 25 25 25 28 30 30 30 30 30 30 30 30 30 30 30 30 30 29 30 30 30 30 Average Carried 27 | 2 11 15 21 24 24 24 25 29 29 29 29 29 30 29 29 29 28 29 29 29 28 29 29 28 28 Final Capacity 30 | 10 15 25 25 25 25 25 30 30 30 30 30 30 30 30 30 30 30 30 30 30 30 30 30 30 30 Final Carried 30 | 9 15 18 25 25 25 25 28 30 30 30 30 30 30 30 30 30 28 30 30 30 29 30 29 30 28 Class Distribution -------------------- 60% | Botlord-Mutant 15% | Commander-Mutant 11% | Bothacker-Mutant 5% | Hacker-Mutant 4% | Scavenger-Mutant Dominant Class ---------------- Hacker-Mutant | -10/Materials Scavenger-Mutant | -9/Materials Hacker-Mutant | -8/Materials Bothacker-Mutant | -8/Garrison Bothacker-Mutant | -8/Materials Bothacker-Mutant | -8/Garrison Botlord-Mutant | -7/Factory Botlord-Mutant | -7/Garrison Botlord-Mutant | -6/Factory Botlord-Mutant | -6/Garrison Botlord-Mutant | -5/Factory Botlord-Mutant | -5/Garrison Botlord-Mutant | -5/Factory Botlord-Mutant | -5/Garrison Botlord-Mutant | -4/Factory Botlord-Mutant | -4/Garrison Botlord-Mutant | -3/Research Botlord-Mutant | -3/Garrison Botlord-Mutant | -3/Research Commander-Mutant | -3/Garrison Commander-Mutant | -2/Research Commander-Mutant | -2/Garrison Botlord-Mutant | -2/Research Botlord-Mutant | -2/Garrison Botlord-Mutant | -1/Access Resources | -11 -10 -9 -8 -8 -8 -8 -7 -7 -6 -6 -5 -5 -5 -5 -4 -4 -3 -3 -3 -3 -2 -2 -2 -2 -1 ----------- Run | Yrd Mat Mat Mat Gar Mat Gar Fac Gar Fac Gar Fac Gar Fac Gar Fac Gar Res Gar Res Gar Res Gar Res Gar Acc Matter Collected 7936 | 272 48 117 775 73 373 826 324 275 233 269 166 396 14 581 318 389 63 180 211 295 190 222 106 196 1024 Remotely . | . . . . . . . . . . . . . . . . . . . . . . . . . . Salvage Created 9098 | 147 287 858 1356 92 535 672 162 117 18 100 105 179 . 229 397 113 72 715 475 781 426 375 48 487 352 Parts 469 | 15 17 49 97 8 37 40 8 10 2 1 5 3 . 3 19 2 3 27 14 31 30 12 1 28 7 Haulers Intercepted 12 | . 2 4 2 . 3 . . . . . . . . . . . . . . . 1 . . . . Recyclers Shooed 14 | . 1 1 1 . . . . . 2 . . . . . 3 . . . . . 1 . 3 . 2 Parts Field Recycled . | . . . . . . . . . . . . . . . . . . . . . . . . . . Retrieved Matter . | . . . . . . . . . . . . . . . . . . . . . . . . . . Parts Self-Destructed . | . . . . . . . . . . . . . . . . . . . . . . . . . . Prevented . | . . . . . . . . . . . . . . . . . . . . . . . . . . Kills | -11 -10 -9 -8 -8 -8 -8 -7 -7 -6 -6 -5 -5 -5 -5 -4 -4 -3 -3 -3 -3 -2 -2 -2 -2 -1 ------- Run | Yrd Mat Mat Mat Gar Mat Gar Fac Gar Fac Gar Fac Gar Fac Gar Fac Gar Res Gar Res Gar Res Gar Res Gar Acc Combat Hostiles Destroyed 127 | . 3 9 27 1 6 16 . 5 1 1 . 4 . 8 7 4 . 6 4 11 2 4 . 6 2 Guns 61 | . 1 8 26 1 6 14 . 4 . . . . . . . 1 . . . . . . . . . Cannons 54 | . . . 1 . . . . . 1 1 . 4 . 8 7 3 . 4 4 8 2 4 . 6 1 AOE 7 | . 1 1 . . . 2 . 1 . . . . . . . . . . . 1 . . . . 1 Classes Destroyed 20 | 3 3 2 5 1 . 1 . . . 1 1 . . . . 1 . . . 2 . . . . . Worker 13 | 2 1 1 1 . 1 . 1 . . . . . . . . . . . 1 . 2 . . . 3 Builder 13 | . . . 4 . 3 . . . . . . . . . 1 . . . . . 2 . . . 3 Tunneler 3 | 2 . . 1 . . . . . . . . . . . . . . . . . . . . . . Hauler 12 | . 2 4 2 . 3 . . . . . . . . . . . . . . . 1 . . . . Recycler 10 | 1 . 1 1 . 1 . 2 . . . . . . . 1 . . . 1 . 1 . . . 1 Mechanic 2 | . . . 1 . . . . . . . . . . . . . . . . . . . . . 1 Operator 2 | . . . 1 . . . . . . . . . . . . . . . . . 1 . . . . Watcher 14 | . 2 3 1 . 1 . . . . . 2 . . . 1 . . . 1 . . . 1 1 1 Swarmer 27 | . . . 9 . 2 . . 3 1 . . . . 5 2 . . . . 3 . . . 2 . Cutter 1 | . . . . . . . . . . . . . . . . . . . . 1 . . . . . Grunt 40 | . 3 4 12 . 2 5 . 1 . . . 1 . 2 2 . . 3 2 2 . . . 1 . Brawler 3 | . . 1 . . . . . . . . . 1 . . . . . 1 . . . . . . . Duelist 3 | . . . 1 . . . . . . . . 1 . . . . . . . . . 1 . . . Sentry 22 | . . 4 5 . 2 2 . . . 1 . 1 . . . 2 1 . . 3 . 1 . . . Demolisher 3 | . . . . . . 1 . . . . . . . 1 . 1 . . . . . . . . . Specialist 1 | . . . . . . . . . . . . . . . . . . 1 . . . . . . . Hunter 4 | . . . . . . . . . . . . . . . . . . . . 1 . 1 . 1 1 Programmer 29 | . . . . 1 . 8 . 1 . . . . . 2 3 . . 5 2 1 2 1 . 2 1 Behemoth 2 | . . . . . . . . . . . . . . . . 1 . . . . . . . 1 . Executioner 1 | . . . . . . . . . . 1 . . . . . . . . . . . . . . . Thug 1 | . . . . . . . . . . . . . . . . . . . . . . 1 . . . Infiltrator 1 | . . . . . . . . . . . 1 . . . . . . . . . . . . . . Best Kill Streak 7 | 2 7 4 5 1 2 4 1 3 1 1 1 2 . 2 3 1 . 2 2 2 2 2 1 2 6 Combat Bots Only 4 | . 2 2 3 1 2 4 . 3 1 1 . 2 . 2 2 1 . 2 2 2 1 2 . 2 1 Max Kills in Single Turn 2 | 2 1 2 2 1 1 1 1 1 1 1 1 1 . 1 1 1 1 1 1 1 1 1 1 1 2 Gunslinging . | . . . . . . . . . . . . . . . . . . . . . . . . . . Exploded 1 | . 1 1 . . . 1 . 1 . . . . . . . . . . . 1 . . . . 1 Melee . | . . . . . . . . . . . . . . . . . . . . . . . . . . Uniques/NPCs Destroyed . | . . . . . . . . . . . . . . . . . . . . . . . . . . Combat | -11 -10 -9 -8 -8 -8 -8 -7 -7 -6 -6 -5 -5 -5 -5 -4 -4 -3 -3 -3 -3 -2 -2 -2 -2 -1 -------- Run | Yrd Mat Mat Mat Gar Mat Gar Fac Gar Fac Gar Fac Gar Fac Gar Fac Gar Res Gar Res Gar Res Gar Res Gar Acc Hostile Shots Fired 746 | . 8 25 126 . 19 94 28 25 43 17 8 14 . 28 13 85 . 22 12 39 14 76 2 28 20 Missed 224 | . 1 6 44 . 7 20 11 9 14 4 1 1 . 6 3 24 . 7 1 12 5 36 1 8 3 Hits 522 | . 7 19 82 . 12 74 17 16 29 13 7 13 . 22 10 61 . 15 11 27 9 40 1 20 17 Melee 8 | . . . 2 . . . . 3 . . . 2 . . . . . . . . . 1 . . . Projectile 514 | . 7 19 80 . 12 74 17 13 29 13 7 11 . 22 10 61 . 15 11 27 9 39 1 20 17 AOE 19 | . . . . . . 4 . 3 . . . . . 4 . 7 . . . 1 . . . . . Critical Strikes 32 | . . 2 2 . . 3 . 1 . 1 1 . . 3 1 4 . 1 2 4 1 3 . 1 2 Actively Blocked 5 | . . . 1 . . . . . . . . . . . . . . . . . . 2 . . 2 Damage Taken 6388 | . 57 162 779 . 66 795 88 128 152 219 85 139 . 289 148 1053 . 238 192 468 244 359 72 341 314 Core 572 | . 33 10 115 . . 72 8 31 7 11 21 22 . 22 13 58 . . . 16 . 15 13 75 30 Absorbed by Shields 867 | . . . . . . . 7 85 57 119 66 114 . 182 10 52 . 16 . 55 . 72 . 32 . Redirected to Shielding 248 | . . 6 39 . . . 13 . . . . . . . . 31 . 6 35 21 10 32 9 46 . Ignored by Resistances 4299 | . 35 100 471 . 47 485 60 115 136 187 86 150 . 275 95 647 . 148 117 310 142 251 41 219 182 Regen/Repaired (Parts) 1478 | . . . . . . . 93 39 35 67 52 61 . . . . 299 150 102 252 213 115 . . . Core Remaining (%) 92 | 100 86 97 . . . 66 . 94 . 97 . . . 93 . 93 . . . 98 . . . 92 98 Volleys Fired 1212 | 7 16 42 111 10 33 88 34 50 28 24 14 46 3 68 44 75 7 65 55 98 60 79 24 61 70 Largest 2 | 2 2 2 2 2 2 2 2 2 1 1 1 1 1 1 1 1 1 1 1 1 1 1 1 1 1 Hottest 120 | 80 80 80 90 51 56 73 65 65 44 44 47 47 47 54 54 70 113 113 113 113 113 120 120 120 120 Shots Fired 1478 | 14 32 84 222 14 64 138 35 52 28 24 14 46 3 68 44 75 7 65 55 99 60 79 24 62 70 Gun 623 | 14 32 84 210 14 62 119 17 41 1 . . . . . . 29 . . . . . . . . . Cannon 604 | . . . 12 . . 2 1 1 12 19 10 38 3 60 35 28 4 52 40 80 45 67 17 47 31 Launcher 36 | . . . . . . 8 . . . . . . . . . . . . . . . . . . 28 Special 215 | . . . . . 2 9 17 10 15 5 4 8 . 8 9 18 3 13 15 19 15 12 7 15 11 Kinetic 753 | 5 5 35 217 14 62 118 18 42 13 19 10 38 3 60 35 57 2 . . . . . . . . Thermal 381 | . . . . . . . . . . . . . . . . . 2 52 40 80 45 67 17 47 31 Explosive 36 | . . . . . . 8 . . . . . . . . . . . . . . . . . . 28 Electromagnetic 93 | 9 27 49 5 . . 3 . . . . . . . . . . . . . . . . . . . Robot Hit Streak 79 | 12 14 30 79 34 58 73 16 8 12 16 17 13 . 17 17 23 13 30 45 20 11 19 32 41 17 Robot Miss Streak 4 | . 2 1 2 . 1 1 3 4 1 . 1 1 . 2 2 1 . 2 1 1 1 1 . 1 2 Penetration Max 1 | . . . . . . 1 . 1 . . . 1 . . . 1 . . . . . . . . . Secondary Targets 6 | . . 1 1 . 1 3 . . . . . . . . . . . . . . . . . . . Max Gunslinging Chain 1 | . . 1 1 . 1 1 . . . . . . . . . . . . . . . . . . . Capacitor 381 | . . . . . . . . . . . . . . . . . 2 52 40 80 45 67 17 47 31 Shots Hit Robots 1046 | 12 24 71 185 7 50 104 25 28 24 13 12 29 . 46 35 56 5 40 50 58 34 40 24 39 35 Core Hits 339 | 7 15 34 78 4 19 35 4 8 1 2 4 7 . 16 10 12 2 12 8 14 10 8 . 11 18 Critical Kills 9 | . . . 2 . 1 . . . . . . . . . . . . 3 . 2 . 1 . . . Critical Parts Destroyed 5 | . . . 1 . 2 2 . . . . . . . . . . . . . . . . . . . Critical Strikes 28 | . . . 4 . 3 2 . . 1 . . 3 . 6 3 . . 3 . 2 . 1 . . . Meltdown 6 | . . . . . . . . . . . . . . . . . . 3 . 2 . 1 . . . Destroy 8 | . . . 3 . 3 2 . . . . . . . . . . . . . . . . . . . Blast 14 | . . . 1 . . . . . 1 . . 3 . 6 3 . . . . . . . . . . Melee Attacks . | . . . . . . . . . . . . . . . . . . . . . . . . . . Impact . | . . . . . . . . . . . . . . . . . . . . . . . . . . Slashing . | . . . . . . . . . . . . . . . . . . . . . . . . . . Piercing . | . . . . . . . . . . . . . . . . . . . . . . . . . . Sneak Attacks . | . . . . . . . . . . . . . . . . . . . . . . . . . . Combat Hostiles . | . . . . . . . . . . . . . . . . . . . . . . . . . . Follow-up Attacks . | . . . . . . . . . . . . . . . . . . . . . . . . . . Damage Inflicted 25175 | 212 461 948 2453 118 965 2676 191 459 323 239 297 890 . 1502 1390 1445 92 1296 1637 1739 852 1183 732 1134 1941 Guns 8106 | 137 349 779 2241 118 965 2489 158 444 . . . . . . . 426 . . . . . . . . . Cannons 15022 | . . . 212 . . . 33 . 323 233 297 890 . 1502 1132 1019 92 1296 1637 1739 852 1183 732 1134 716 Explosions 2026 | 75 112 169 . . . 187 . . . . . . . . 258 . . . . . . . . . 1225 Melee . | . . . . . . . . . . . . . . . . . . . . . . . . . . Ramming 21 | . . . . . . . . 15 . 6 . . . . . . . . . . . . . . . Kinetic 12743 | 37 36 219 2378 118 965 2441 191 444 323 233 297 890 . 1502 1132 1445 92 . . . . . . . . Thermal 9903 | 75 112 169 . . . . . . . . . . . . 258 . . 1296 1637 1739 852 1183 732 1134 716 Explosive 1412 | . . . . . . 187 . . . . . . . . . . . . . . . . . . 1225 Electromagnetic 1096 | 100 313 560 75 . . 48 . . . . . . . . . . . . . . . . . . . Impact . | . . . . . . . . . . . . . . . . . . . . . . . . . . Slashing . | . . . . . . . . . . . . . . . . . . . . . . . . . . Piercing . | . . . . . . . . . . . . . . . . . . . . . . . . . . Highest Corruption 4 | . . 1 . . . 4 . 2 . . . . . . . . . . 1 1 1 1 1 1 . Average Corruption 1 | . . 1 . . . 3 . 1 . . . . . . . . . . 1 1 1 1 1 1 . Corruption Purged 1 | . . . . . . 1 . . . . . . . . . . . . . . . . . . . Corruption Blocked 1 | . . . . . . . . . . . . 1 . . . . . . . . . . . . . Effects 75 | . . 3 . . . 19 . 7 . . . . . . . . . . 9 21 3 5 . 8 . Message Errors 16 | . . 1 . . . 3 . 2 . . . . . . . . . . . 8 . 1 . 1 . Matter Fused 21 | . . 1 . . . 4 . 2 . . . . . . . . . . 3 5 . 3 . 3 . Heat Flow Errors 14 | . . 1 . . . 5 . 1 . . . . . . . . . . 1 2 2 1 . 1 . Energy Discharges 4 | . . . . . . . . . . . . . . . . . . . 2 2 . . . . . Parts Rejected 1 | . . . . . . . . . . . . . . . . . . . 1 . . . . . . Parts Fused 2 | . . . . . . 1 . . . . . . . . . . . . . 1 . . . . . Data Loss (minor) 8 | . . . . . . 1 . 1 . . . . . . . . . . 2 2 1 . . 1 . Data Loss (major) 4 | . . . . . . 3 . . . . . . . . . . . . . . . . . 1 . Misfires 5 | . . . . . . 2 . 1 . . . . . . . . . . . 1 . . . 1 . Overload Shots . | . . . . . . . . . . . . . . . . . . . . . . . . . . Overflow Damage 980 | . . . . . . 3 . . 36 . . 16 . 27 281 . . 12 187 115 34 . 144 26 99 Projectiles 695 | . . . . . . . . . 36 . . 16 . 27 76 . . 12 187 115 34 . 144 26 22 Explosions 285 | . . . . . . 3 . . . . . . . . 205 . . . . . . . . . 77 Melee . | . . . . . . . . . . . . . . . . . . . . . . . . . . Knockbacks 30 | . . . 1 . . . 1 . 3 3 1 5 . 4 10 2 . . . . . . . . . Impact . | . . . . . . . . . . . . . . . . . . . . . . . . . . Kinetic 30 | . . . 1 . . . 1 . 3 3 1 5 . 4 10 2 . . . . . . . . . Secondary . | . . . . . . . . . . . . . . . . . . . . . . . . . . Self-Inflicted Damage 123 | . . 14 . . . 55 . 7 . 3 . . . . . . . . . . . . . . 44 Shots 9 | . . 1 . . . 7 . . . . . . . . . . . . . . . . . . 1 Rammed 2 | . . . . . . . . 1 . 1 . . . . . . . . . . . . . . . Targets Rammed 2 | . . . . . . . . 1 . 1 . . . . . . . . . . . . . . . Kicked . | . . . . . . . . . . . . . . . . . . . . . . . . . . Crushed . | . . . . . . . . . . . . . . . . . . . . . . . . . . Highest Temperature 325 | 40 105 153 3 . 5 222 . 141 . 67 18 36 12 120 324 324 130 325 325 300 190 320 255 264 192 Average Temperature 74 | 16 31 38 3 . 3 73 . 79 . 22 7 10 6 26 111 77 40 102 119 115 58 88 108 83 77 Received Heat Transfer 1519 | . 54 120 567 . 27 90 39 24 42 7 19 20 . 11 . 170 . 51 51 43 66 65 9 35 9 Effects 10 | . . . . . . . . . . . . . . . 1 3 . . 4 2 . . . . . Shutdowns 1 | . . . . . . . . . . . . . . . . 1 . . . . . . . . . Energy Bleed 2 | . . . . . . . . . . . . . . . 1 1 . . . . . . . . . Interference 4 | . . . . . . . . . . . . . . . . . . . 3 1 . . . . . Matter Decay 1 | . . . . . . . . . . . . . . . . . . . 1 . . . . . . Short Circuit 1 | . . . . . . . . . . . . . . . . 1 . . . . . . . . . Damage (minor) 1 | . . . . . . . . . . . . . . . . . . . . 1 . . . . . Siege Activations . | . . . . . . . . . . . . . . . . . . . . . . . . . . Martial Activations . | . . . . . . . . . . . . . . . . . . . . . . . . . . Shielding Activations . | . . . . . . . . . . . . . . . . . . . . . . . . . . Robots Disrupted . | . . . . . . . . . . . . . . . . . . . . . . . . . . Combat Hostiles . | . . . . . . . . . . . . . . . . . . . . . . . . . . Robots Corrupted 1 | . 1 . . . . . . . . . . . . . . . . . . . . . . . . Combat Hostiles 1 | . 1 . . . . . . . . . . . . . . . . . . . . . . . . Parts Fried 3 | . 2 1 . . . . . . . . . . . . . . . . . . . . . . . Impact Corruptions . | . . . . . . . . . . . . . . . . . . . . . . . . . . Robots Melted 6 | . . . . . . . . . . . . . . . . . . 3 . 2 . 1 . . . Combat Hostiles 4 | . . . . . . . . . . . . . . . . . . 2 . 2 . . . . . Parts Melted 31 | . . . . 2 . . . 2 . 2 . 1 . 1 . . . 11 2 6 . 3 . 1 . Heat Transferred 8288 | . 50 250 . . . . . . . . . . . . 150 . . 1053 1369 1534 740 1036 629 943 534 Parts Sabotaged . | . . . . . . . . . . . . . . . . . . . . . . . . . . Parts Stolen . | . . . . . . . . . . . . . . . . . . . . . . . . . . Parts Stripped . | . . . . . . . . . . . . . . . . . . . . . . . . . . Power Chain Reactions 5 | 1 1 3 . . . . . . . . . . . . . . . . . . . . . . . Alert | -11 -10 -9 -8 -8 -8 -8 -7 -7 -6 -6 -5 -5 -5 -5 -4 -4 -3 -3 -3 -3 -2 -2 -2 -2 -1 ------- Run | Yrd Mat Mat Mat Gar Mat Gar Fac Gar Fac Gar Fac Gar Fac Gar Fac Gar Res Gar Res Gar Res Gar Res Gar Acc Maximum Alert Level 4 | . . . . 2 1 3 1 3 1 2 1 3 1 3 2 2 1 3 1 3 3 4 2 3 2 Low Security (%) 30 | 100 100 100 100 39 86 31 77 15 25 13 48 20 16 3 . 39 37 18 85 10 . . . . 10 Level 1 25 | . . . . 25 13 18 22 15 74 85 51 1 83 11 93 37 62 12 14 18 . . 29 12 65 Level 2 27 | . . . . 35 . 38 . 50 . . . 42 . 58 6 22 . 33 . 41 88 20 70 27 24 Level 3 15 | . . . . . . 11 . 18 . . . 35 . 26 . . . 35 . 29 11 62 . 60 . Level 4 . | . . . . . . . . . . . . . . . . . . . . . . 16 . . . Level 5 . | . . . . . . . . . . . . . . . . . . . . . . . . . . High Security . | . . . . . . . . . . . . . . . . . . . . . . . . . . Max Security . | . . . . . . . . . . . . . . . . . . . . . . . . . . Peak Influence 1168 | 10 96 113 110 698 253 825 321 844 328 466 279 864 336 869 416 659 278 805 339 1046 759 1168 493 897 512 Initial 493 | . . 6 . 21 249 22 321 . 328 138 181 99 336 96 338 110 278 85 339 68 441 421 493 212 408 Average 395 | 2 44 44 55 320 47 399 115 466 228 261 207 559 256 615 281 281 214 513 157 577 611 907 423 682 324 Influence Increases 15741 | 25 225 331 768 697 249 873 188 984 629 398 293 825 8 1073 638 1029 4 890 568 1208 984 917 361 815 761 Destroy 0b10 Robot/C 7540 | . 60 180 540 20 120 400 80 500 360 120 140 400 . 540 360 440 . 440 320 580 500 460 180 420 380 Destroy 0b10 Robot/NC 450 | 25 25 45 60 5 45 . 20 . 15 . 15 . . 5 20 . . . 25 5 45 . 40 5 50 Destroy Leader 1144 | . 18 64 146 . 38 20 32 30 70 10 46 20 . 50 64 40 . 50 72 60 134 60 48 30 42 Allied During Kill 1978 | . . . . 2 3 8 28 124 118 22 40 126 . 156 90 91 . 147 123 193 200 156 78 136 137 Trap Triggered on 0b10 50 | . 50 . . . . . . . . . . . . . . . . . . . . . . . . Successful Hack 305 | . 16 3 16 20 4 25 23 8 8 . 30 6 . 18 . 30 . 14 22 22 12 8 . 20 . Select Force Hacks 60 | . 30 30 . . . . . . . . . . . . . . . . . . . . . . . Disable Machine 88 | . 4 . 4 . 8 . 4 . 8 . 16 . 4 . 16 4 . . . . . 12 . . 8 Anti-Garrison Action 3050 | . . . . 650 . 300 . 300 . 200 . 200 . 200 . 400 . 200 . 300 . 150 . 150 . Destroy Structure 941 | . 7 9 2 . 1 90 1 22 50 46 6 73 4 74 88 24 4 39 6 48 78 71 . 54 144 Partial Spotted 15 | . . . . . . . . . . . . . . . . . . . . . . . 15 . . Lose Combat Pursuer 120 | . 15 . . . 30 30 . . . . . . . 30 . . . . . . 15 . . . . Influence Decreases 15427 | 25 205 351 723 44 901 94 1013 140 1216 189 575 145 693 383 1301 576 516 232 1256 279 1310 469 1165 282 1344 Entered New Map 6436 | . . 14 . 24 449 24 504 . 516 119 285 85 528 83 531 96 381 62 466 49 605 299 675 152 489 Time Decay 5410 | 25 205 327 590 . 272 . 481 . 630 . 270 . 165 . 450 . 135 . 540 . 555 . 270 . 495 Lost Part 140 | . . 10 40 . . 30 10 . . . . . . . 10 20 . . . . . . . 10 10 Lost Ally 2898 | . . . . 20 30 40 18 140 70 70 20 60 . 300 160 460 . 170 100 230 150 170 220 120 350 Purge Threat 543 | . . . 93 . 150 . . . . . . . . . 150 . . . 150 . . . . . . Squads Dispatched 36 | . 1 1 5 . 2 . 3 . 3 . 1 . . . 4 . . . 4 . 7 . 3 . 2 Investigation 8 | . 1 1 . . . . 1 . 1 . . . . . 2 . . . 1 . 1 . . . . Extermination 9 | . . . . . . . 2 . 1 . . . . . 2 . . . 1 . 1 . 1 . 1 Reinforcement 11 | . . . 2 . 2 . . . 1 . . . . . . . . . 2 . 1 . 2 . 1 Assault 1 | . . . . . . . . . . . . . . . . . . . . . 1 . . . . Garrison 7 | . . . 3 . . . . . . . 1 . . . . . . . . . 3 . . . . Intercept . | . . . . . . . . . . . . . . . . . . . . . . . . . . Searches Triggered . | . . . . . . . . . . . . . . . . . . . . . . . . . . Construction Impeded 2 | . . . 1 . . . . . 1 . . . . . . . . . . . . . . . . Haulers Reinforced 4 | . . . . . . . . . . . . . . . . . . . 2 . . . 1 . 1 Active Scanning Responses . | . . . . . . . . . . . . . . . . . . . . . . . . . . Cargo Convoy Interrupts . | . . . . . . . . . . . . . . . . . . . . . . . . . . Stealth | -11 -10 -9 -8 -8 -8 -8 -7 -7 -6 -6 -5 -5 -5 -5 -4 -4 -3 -3 -3 -3 -2 -2 -2 -2 -1 --------- Run | Yrd Mat Mat Mat Gar Mat Gar Fac Gar Fac Gar Fac Gar Fac Gar Fac Gar Res Gar Res Gar Res Gar Res Gar Acc Distress Signals 11 | . . 2 1 . . . . 1 1 . . . . . 1 . . . 1 . 2 . 2 . . Communications Jammed 166 | . . . . . . . . . 2 . . . . . 1 14 . . 5 . 1 . 134 1 8 Distress Signals 162 | . . . . . . . . . 2 . . . . . . 14 . . 5 . . . 132 1 8 Times Spotted 471 | . 7 13 34 1 11 32 10 30 22 6 5 21 . 31 22 33 2 25 15 40 28 25 9 31 18 Peak Tracking Total 6 | . 3 3 4 1 4 3 3 5 3 3 2 5 . 5 4 6 1 3 4 4 4 6 4 6 4 Tactical Retreats 7 | . 1 . . . 2 2 . . . . . . . 1 . . . . . . 1 . . . . Traps | -11 -10 -9 -8 -8 -8 -8 -7 -7 -6 -6 -5 -5 -5 -5 -4 -4 -3 -3 -3 -3 -2 -2 -2 -2 -1 ------- Run | Yrd Mat Mat Mat Gar Mat Gar Fac Gar Fac Gar Fac Gar Fac Gar Fac Gar Res Gar Res Gar Res Gar Res Gar Acc Traps Triggered 74 | . . 2 1 1 . 4 2 8 . 3 . 5 . 11 . 8 . 3 1 9 1 3 . 11 1 Indirectly . | . . . . . . . . . . . . . . . . . . . . . . . . . . Trap Hack Attempts . | . . . . . . . . . . . . . . . . . . . . . . . . . . Triggered . | . . . . . . . . . . . . . . . . . . . . . . . . . . Disarmed . | . . . . . . . . . . . . . . . . . . . . . . . . . . Reprogrammed 7 | . 7 . . . . . . . . . . . . . . . . . . . . . . . . Reused 5 | . 5 . . . . . . . . . . . . . . . . . . . . . . . . Traps Extracted . | . . . . . . . . . . . . . . . . . . . . . . . . . . Installed . | . . . . . . . . . . . . . . . . . . . . . . . . . . Triggered 5 | . 5 . . . . . . . . . . . . . . . . . . . . . . . . Machines | -11 -10 -9 -8 -8 -8 -8 -7 -7 -6 -6 -5 -5 -5 -5 -4 -4 -3 -3 -3 -3 -2 -2 -2 -2 -1 ---------- Run | Yrd Mat Mat Mat Gar Mat Gar Fac Gar Fac Gar Fac Gar Fac Gar Fac Gar Res Gar Res Gar Res Gar Res Gar Acc Machines Disabled 65 | . 1 . 1 5 2 6 1 3 2 3 4 5 1 2 4 5 . 4 . 5 . 6 . 3 2 Max in Single Turn 2 | . 1 . 1 1 1 1 1 1 . 1 . 1 1 1 2 1 . 1 . 1 . 1 . 1 1 Garrison Access 4 | . . . . . . . . . 1 . 1 . . . . . . . . . . . . . 2 Garrison Relay 38 | . . . . 5 . 4 . 3 . 2 . 4 . 2 . 4 . 4 . 4 . 3 . 3 . Machines Repaired . | . . . . . . . . . . . . . . . . . . . . . . . . . . Machines Dismantled . | . . . . . . . . . . . . . . . . . . . . . . . . . . Machines Sabotaged . | . . . . . . . . . . . . . . . . . . . . . . . . . . Overloaded Fab Kills . | . . . . . . . . . . . . . . . . . . . . . . . . . . Hacking | -11 -10 -9 -8 -8 -8 -8 -7 -7 -6 -6 -5 -5 -5 -5 -4 -4 -3 -3 -3 -3 -2 -2 -2 -2 -1 --------- Run | Yrd Mat Mat Mat Gar Mat Gar Fac Gar Fac Gar Fac Gar Fac Gar Fac Gar Res Gar Res Gar Res Gar Res Gar Acc Machines Accessed 82 | . 4 4 8 3 7 4 5 2 5 1 6 3 1 2 4 2 2 3 3 4 2 2 2 1 2 Terminals 59 | . 3 3 7 3 4 4 3 2 3 1 3 3 . 2 3 2 1 3 1 4 . 2 1 1 . Fabricators 4 | . . . . . . . 1 . . . 1 . . . . . . . 1 . 1 . . . . Repair Stations . | . . . . . . . . . . . . . . . . . . . . . . . . . . Recycling Units 3 | . 1 1 . . 1 . . . . . . . . . . . . . . . . . . . . Scanalyzers 1 | . . . . . 1 . . . . . . . . . . . . . . . . . . . . Garrison Access 15 | . . . 1 . 1 . 1 . 2 . 2 . 1 . 1 . 1 . 1 . 1 . 1 . 2 Total Hacks 200 | . 16 12 30 7 20 9 13 5 10 3 10 5 1 4 11 6 2 6 8 9 3 3 2 3 2 Successful 145 | . 13 8 21 4 15 7 12 1 5 2 9 5 1 4 5 4 1 5 8 6 2 2 1 2 2 Failed 55 | . 3 4 9 3 5 2 1 4 5 1 1 . . . 6 2 1 1 . 3 1 1 1 1 . Catastrophic 8 | . . . 1 1 . . 1 . 2 . . . . . . 1 . . . 1 . . . 1 . Database Lockouts . | . . . . . . . . . . . . . . . . . . . . . . . . . . Manual 102 | . 11 9 21 3 8 4 7 . 4 2 4 2 . 2 8 3 1 3 1 4 1 1 1 2 . Terminals 166 | . 14 10 29 7 13 9 9 5 8 3 6 5 . 4 10 6 1 6 5 9 . 3 1 3 . Fabricators 9 | . . . . . . . 3 . . . 2 . . . . . . . 2 . 2 . . . . Repair Stations . | . . . . . . . . . . . . . . . . . . . . . . . . . . Recycling Units 7 | . 2 2 . . 3 . . . . . . . . . . . . . . . . . . . . Scanalyzers 3 | . . . . . 3 . . . . . . . . . . . . . . . . . . . . Garrison Access 15 | . . . 1 . 1 . 1 . 2 . 2 . 1 . 1 . 1 . 1 . 1 . 1 . 2 Terminal Hacks 68 | . 9 3 13 3 4 4 5 1 . 1 2 3 . 2 2 2 . 3 4 4 . 2 . 1 . Part Schematic 5 | . 2 1 1 . . . 1 . . . . . . . . . . . . . . . . . . Robot Analysis 2 | . 1 . 1 . . . . . . . . . . . . . . . . . . . . . . Prototype ID Bank 7 | . 1 1 3 . 1 . . . . . 1 . . . . . . . . . . . . . . Open Door 5 | . . . . 1 . 1 . . . . . 1 . . . . . 1 . 1 . . . . . Level Access Points 1 | . . . 1 . . . . . . . . . . . . . . . . . . . . . . Emergency Access Points 10 | . . . . 1 . 1 1 1 . . . 1 . 1 . 1 . 1 . 1 . 1 . . . Fabricator Index 1 | . . . . . . . 1 . . . . . . . . . . . . . . . . . . Scanalyzer Index 1 | . . . . . 1 . . . . . . . . . . . . . . . . . . . . Garrison Index 3 | . . . 1 . . . 1 . . . . . . . 1 . . . . . . . . . . Alert Level 3 | . . . 2 . . . . . . . . . . . . . . . 1 . . . . . . Unreport Threat 4 | . . . 2 . . . . . . . . . . . 1 . . . 1 . . . . . . Locate Traps 4 | . 1 . . . 1 . 1 . . . 1 . . . . . . . . . . . . . . Reprogram Traps 2 | . 2 . . . . . . . . . . . . . . . . . . . . . . . . Surveillance Status 1 | . . . 1 . . . . . . . . . . . . . . . . . . . . . . Investigation Status 1 | . . . . . . . . . . . . . . . . . . . 1 . . . . . . Hauler Manifests 1 | . 1 . . . . . . . . . . . . . . . . . . . . . . . . Registered Components 2 | . 1 . . . . . . . . . . . . . . . . . 1 . . . . . . Zone Layout 3 | . . 1 1 . 1 . . . . . . . . . . . . . . . . . . . . Garrison Registry 6 | . . . . . . 1 . . . 1 . 1 . 1 . . . 1 . 1 . . . . . Patrol Navigation 2 | . . . . . . . . . . . . . . . . . . . . . . 1 . 1 . Security Stations 4 | . . . . 1 . 1 . . . . . . . . . 1 . . . 1 . . . . . Fabricator Hacks 6 | . . . . . . . 2 . . . 2 . . . . . . . 2 . . . . . . Load Schematic 3 | . . . . . . . 1 . . . 1 . . . . . . . 1 . . . . . . Build 3 | . . . . . . . 1 . . . 1 . . . . . . . 1 . . . . . . Repair Station Hacks . | . . . . . . . . . . . . . . . . . . . . . . . . . . Recycling Unit Hacks 2 | . . . . . 2 . . . . . . . . . . . . . . . . . . . . Process 1 | . . . . . 1 . . . . . . . . . . . . . . . . . . . . Retrieve Components 1 | . . . . . 1 . . . . . . . . . . . . . . . . . . . . Scanalyzer 3 | . . . . . 3 . . . . . . . . . . . . . . . . . . . . Insert Component 2 | . . . . . 2 . . . . . . . . . . . . . . . . . . . . Analyze 1 | . . . . . 1 . . . . . . . . . . . . . . . . . . . . Garrison Access Hacks 15 | . . . 1 . 1 . 1 . 2 . 2 . 1 . 1 . 1 . 1 . 1 . 1 . 2 Unlock Access 11 | . . . 1 . 1 . 1 . 1 . 1 . 1 . 1 . 1 . 1 . 1 . 1 . . Seal Access 4 | . . . . . . . . . 1 . 1 . . . . . . . . . . . . . 2 Unauthorized Hacks 51 | . 4 5 7 1 5 3 4 . 3 1 3 2 . 2 2 2 . 2 1 2 1 . . 1 . Terminals 44 | . 2 3 7 1 4 3 3 . 3 1 3 2 . 2 2 2 . 2 1 2 . . . 1 . Track 1 | . . . . . . . . . . . . . . . . . . 1 . . . . . . . Botnet 43 | . 2 3 7 1 4 3 3 . 3 1 3 2 . 2 2 2 . 1 1 2 . . . 1 . Fabricators 2 | . . . . . . . 1 . . . . . . . . . . . . . 1 . . . . Prioritize 1 | . . . . . . . 1 . . . . . . . . . . . . . . . . . . Fabnet 1 | . . . . . . . . . . . . . . . . . . . . . 1 . . . . Repair Stations . | . . . . . . . . . . . . . . . . . . . . . . . . . . Recycling Units 5 | . 2 2 . . 1 . . . . . . . . . . . . . . . . . . . . Recyclers 3 | . 1 1 . . 1 . . . . . . . . . . . . . . . . . . . . Tunnel 2 | . 1 1 . . . . . . . . . . . . . . . . . . . . . . . Scanalyzers . | . . . . . . . . . . . . . . . . . . . . . . . . . . Garrison Access . | . . . . . . . . . . . . . . . . . . . . . . . . . . Data Cores Recovered 1 | . . . 1 . . . . . . . . . . . . . . . . . . . . . . Used . | . . . . . . . . . . . . . . . . . . . . . . . . . . Hacking Detections 59 | . 3 3 6 2 7 2 4 2 3 1 4 2 . 2 4 2 1 1 2 3 2 1 1 1 . Full Trace Events 6 | . . . . . 1 . . 1 1 . . . . . 2 . . . 1 . . . . . . Feedback Events 1 | . . . . . . . . . . . . . . . . . . . 1 . . . . . . Corruption 1 | . . . . . . . . . . . . . . . . . . . 1 . . . . . . Feedback Blocked . | . . . . . . . . . . . . . . . . . . . . . . . . . . Robot Schematics Acquired . | . . . . . . . . . . . . . . . . . . . . . . . . . . Robots Built . | . . . . . . . . . . . . . . . . . . . . . . . . . . Authchips . | . . . . . . . . . . . . . . . . . . . . . . . . . . Time . | . . . . . . . . . . . . . . . . . . . . . . . . . . Total Robot Build Rating . | . . . . . . . . . . . . . . . . . . . . . . . . . . Part Schematics Acquired 5 | . 2 1 1 . . . 1 . . . . . . . . . . . . . . . . . . Parts Built 4 | . . . . . . . 1 . . . 1 . . . . . . . 2 . . . . . . Authchips . | . . . . . . . . . . . . . . . . . . . . . . . . . . Time 129 | . . . . . . . 51 . . . 36 . . . . . . . 42 . . . . . . Total Part Build Rating 12 | . . . . . . . 1 . . . 3 . . . . . . . 8 . . . . . . Parts Repaired . | . . . . . . . . . . . . . . . . . . . . . . . . . . Time . | . . . . . . . . . . . . . . . . . . . . . . . . . . Parts Recycled . | . . . . . . . . . . . . . . . . . . . . . . . . . . Recycled Matter . | . . . . . . . . . . . . . . . . . . . . . . . . . . Retrieved Matter . | . . . . . . . . . . . . . . . . . . . . . . . . . . Retrieved Components . | . . . . . . . . . . . . . . . . . . . . . . . . . . Parts Scanalyzed 1 | . . . . . 1 . . . . . . . . . . . . . . . . . . . . Part Schematics Acquired . | . . . . . . . . . . . . . . . . . . . . . . . . . . Parts Damaged . | . . . . . . . . . . . . . . . . . . . . . . . . . . Bothacking | -11 -10 -9 -8 -8 -8 -8 -7 -7 -6 -6 -5 -5 -5 -5 -4 -4 -3 -3 -3 -3 -2 -2 -2 -2 -1 ------------ Run | Yrd Mat Mat Mat Gar Mat Gar Fac Gar Fac Gar Fac Gar Fac Gar Fac Gar Res Gar Res Gar Res Gar Res Gar Acc Used RIF Installer 13 | . . . . 2 . 2 . 1 . 1 . 1 . 1 . 1 . 1 . 1 . 1 . 1 . Coupler Efficiency 2 | . . . . 1 . . . . . . . . . . . . . 1 . . . . . . . Hotswap 1 | . . . . . . 1 . . . . . . . . . . . . . . . . . . . Command Fork 2 | . . . . . . 1 . . . . . . . . . . . . . . . 1 . . . Signal Jammer 1 | . . . . . . . . 1 . . . . . . . . . . . . . . . . . Zone Cloak 1 | . . . . . . . . . . . . . . . . . . . . 1 . . . . . Robot Detection 1 | . . . . . . . . . . . . . . . . . . . . . . . . 1 . Structural Interface 1 | . . . . . . . . . . . . . . . . 1 . . . . . . . . . Autooverride 1 | . . . . . . . . . . 1 . . . . . . . . . . . . . . . Autoassimilate 1 | . . . . . . . . . . . . 1 . . . . . . . . . . . . . Crosswire 1 | . . . . . . . . . . . . . . 1 . . . . . . . . . . . Robots Hacked 213 | . . . . . 1 7 10 7 10 4 4 11 . 12 7 24 4 14 15 21 14 15 3 18 12 Non-combat 29 | . . . . . 1 . 5 . 4 . 1 . . . 2 . 3 . 5 . 4 1 1 . 2 Combat 184 | . . . . . . 7 5 7 6 4 3 11 . 12 5 24 1 14 10 21 10 14 2 18 10 Autooverrided 22 | . . . . . . . . . . . 2 4 . 2 . 3 1 1 . 1 3 1 . 2 2 Autoassimilated 28 | . . . . . . . . . . . . 1 . 2 1 9 . 2 4 3 . 2 . 3 1 Robot Hacks Applied 180 | . . . . . 2 7 12 7 11 4 3 6 . 8 7 14 3 11 11 18 14 12 6 13 11 parse_system 1 | . . . . . . . . . . . . . . . . . . . . . . 1 . . . no_distress 2 | . . . . . . . . . . . . . . . . . . . . . 1 . 1 . . ignore_repairs 3 | . . . . . . . . . . . . . . . . . . . . . 3 . . . . find_fabricator 1 | . . . . . . . 1 . . . . . . . . . . . . . . . . . . drop_inventory 11 | . . . . . . . 2 . 1 . . . . . 2 . . . 3 . 1 . 1 . 1 locate_stockpiles 5 | . . . . . . . 1 . 1 . . . . . 1 . . . . . . . 1 . 1 purge_threat 1 | . . . . . 1 . . . . . . . . . . . . . . . . . . . . map_route 2 | . . . . . . . 1 . . . . . . . . . . . 1 . . . . . . find_shortcuts 1 | . . . . . . . . . . . . . . . . . . . . 1 . . . . . find_garrison 5 | . . . . . . . . . 1 . 1 . . . . . . . 1 . 1 . 1 . . mark_system 1 | . . . . . . . . . . . . . . . . . . . . 1 . . . . . amplify_resonance 24 | . . . . . . 2 1 3 . . . . . 2 1 3 . . . 1 3 . . 6 2 disable_weapons 1 | . . . . . . . . . . . . . . . . . . . . . . . . . 1 reboot_system 1 | . . . . . . . . 1 . . . . . . . . . . . . . . . . . overwrite_iff 26 | . . . . . . 1 . 1 1 2 . 2 . 3 . 4 . 1 1 2 . 2 . 2 4 formatsys_low 9 | . . . . . 1 . 2 . 2 . . . . . . . 1 . 1 . 1 . . . 1 formatsys_high 86 | . . . . . . 4 4 2 5 2 2 4 . 3 3 7 2 10 4 13 4 9 2 5 1 Relay Couplers Released 173 | . . . . 25 . 18 . 13 . 6 . 13 . 11 . 16 . 21 . 17 4 15 . 13 1 Machine Destruction 158 | . . . . 21 . 18 . 13 . 6 . 13 . 7 . 16 . 18 . 17 . 15 . 13 1 Programmers 15 | . . . . 4 . . . . . . . . . 4 . . . 3 . . 4 . . . . Attached 38 | . . . . . 1 4 1 . 2 3 1 3 . 3 1 2 . 3 . 5 . 5 1 3 . Crosswired 40 | . . . . . . . . . . . . . . 5 . 9 . 5 . 4 2 8 . 7 . Fabnet Peak Effective % 3 | . . . . . . . . . . . . . . . . . . . . . . . . . 3 Robots Rewired 47 | . . . . 6 . 6 1 . . 1 . 3 . 9 . 9 . 6 . 6 . . . . . Allies Hacked 15 | . . . . . . 1 . 1 . . . . . 3 . . . 1 3 . 2 . . . 4 Hacks Repelled . | . . . . . . . . . . . . . . . . . . . . . . . . . . Allies | -11 -10 -9 -8 -8 -8 -8 -7 -7 -6 -6 -5 -5 -5 -5 -4 -4 -3 -3 -3 -3 -2 -2 -2 -2 -1 -------- Run | Yrd Mat Mat Mat Gar Mat Gar Fac Gar Fac Gar Fac Gar Fac Gar Fac Gar Res Gar Res Gar Res Gar Res Gar Acc Total Allies 257 | . . . . 6 1 12 10 6 10 5 4 18 . 21 5 34 5 23 12 28 8 18 2 15 14 Largest Group 41 | . . . . 5 6 8 16 16 18 12 12 18 17 19 11 12 16 24 26 39 41 40 32 23 23 Highest-Rated Group 2054 | . . . . 77 87 158 321 422 549 389 415 697 682 711 516 633 741 1147 1178 1884 2016 2054 1677 1232 1277 Highest-Rated Ally 99 | . . . . 31 31 39 40 95 90 99 99 95 90 90 80 68 68 68 68 99 84 69 69 69 69 Total Orders 31 | . . . . . . 4 2 5 2 2 1 1 1 2 . . 1 1 2 2 2 2 . . 1 STAY 4 | . . . . . . 2 . 1 . . . . . 1 . . . . . . . . . . . FOLLOW 4 | . . . . . . 2 . 1 . . . . . 1 . . . . . . . . . . . AID 23 | . . . . . . . 2 3 2 2 1 1 1 . . . 1 1 2 2 2 2 . . 1 Ally Attacks 1736 | . . . . 9 19 27 21 109 83 33 43 121 . 167 79 114 . 85 89 140 145 112 95 79 166 Total Damage 54207 | . . . . 79 211 477 312 1740 2401 1234 2044 3891 . 3563 2037 3731 . 3586 3263 5244 4978 3975 2900 2675 5866 Kills 287 | . . . . . 1 4 5 20 21 5 8 17 . 23 14 18 . 18 15 18 26 20 17 16 21 Allies Corrupted 14 | . . . . . . . 1 2 . . . 1 . 3 . . . . . 1 4 . 1 1 . Allies Melted 5 | . . . . . . . . . . . . . . . . 2 . 1 . . . 1 . 1 . Intel | -11 -10 -9 -8 -8 -8 -8 -7 -7 -6 -6 -5 -5 -5 -5 -4 -4 -3 -3 -3 -3 -2 -2 -2 -2 -1 ------- Run | Yrd Mat Mat Mat Gar Mat Gar Fac Gar Fac Gar Fac Gar Fac Gar Fac Gar Res Gar Res Gar Res Gar Res Gar Acc Active Infowar (turns) 20288 | . . . 318 1114 590 1242 817 1393 851 871 369 913 239 1463 609 1804 191 1194 726 1689 751 1068 376 1021 679 Optics 20288 | . . . 318 1114 590 1242 817 1393 851 871 369 913 239 1463 609 1804 191 1194 726 1689 751 1068 376 1021 679 Sensors 842 | . . . . . . . . . . . . . . . 263 579 . . . . . . . . . Machine Analysis 188 | . . . . . . 188 . . . . . . . . . . . . . . . . . . . Robot Analysis Total 2 | . 1 . 1 . . . . . . . . . . . . . . . . . . . . . . Derelict Logs Recovered . | . . . . . . . . . . . . . . . . . . . . . . . . . . Drone Launches . | . . . . . . . . . . . . . . . . . . . . . . . . . . Drone Recoveries . | . . . . . . . . . . . . . . . . . . . . . . . . . . Exploration | -11 -10 -9 -8 -8 -8 -8 -7 -7 -6 -6 -5 -5 -5 -5 -4 -4 -3 -3 -3 -3 -2 -2 -2 -2 -1 ------------- Run | Yrd Mat Mat Mat Gar Mat Gar Fac Gar Fac Gar Fac Gar Fac Gar Fac Gar Res Gar Res Gar Res Gar Res Gar Acc Turns Passed 21799 | 120 330 505 858 1114 590 1242 817 1393 851 871 369 913 239 1463 609 1804 191 1194 726 1705 751 1068 376 1021 679 Spaces Moved 11802 | 83 234 306 356 811 375 682 512 775 475 466 187 409 122 758 309 938 103 662 402 923 361 587 152 509 305 Core 23 | 23 . . . . . . . . . . . . . . . . . . . . . . . . . Treads . | . . . . . . . . . . . . . . . . . . . . . . . . . . Legs . | . . . . . . . . . . . . . . . . . . . . . . . . . . Wheels 11779 | 60 234 306 356 811 375 682 512 775 475 466 187 409 122 758 309 938 103 662 402 923 361 587 152 509 305 Hover . | . . . . . . . . . . . . . . . . . . . . . . . . . . Flight . | . . . . . . . . . . . . . . . . . . . . . . . . . . Fastest Speed 50 | 50 90 95 110 125 125 125 125 145 160 160 160 160 160 160 160 160 145 145 145 145 145 145 160 160 160 Average Speed 144 | 96 98 111 125 125 125 125 133 145 160 160 160 160 160 160 160 160 145 145 145 145 145 153 160 160 160 Slowest Speed 160 | 115 105 125 140 125 145 125 145 145 160 160 160 160 160 160 160 160 145 145 145 145 145 160 160 160 160 Overloaded Moves . | . . . . . . . . . . . . . . . . . . . . . . . . . . Propulsion Burnouts . | . . . . . . . . . . . . . . . . . . . . . . . . . . Robots Hopped . | . . . . . . . . . . . . . . . . . . . . . . . . . . Potential Cave-ins . | . . . . . . . . . . . . . . . . . . . . . . . . . . Cave-ins Triggered . | . . . . . . . . . . . . . . . . . . . . . . . . . . Exploration Rate (%) 45 | 4 54 26 38 95 44 80 15 77 18 68 9 67 5 70 11 83 5 86 16 90 15 92 9 86 9 Regions Visited 25 Branch Regions . Pre-discovered Areas 2 | . 1 1 . . . . . . . . . . . . . . . . . . . . . . . Known Exits Taken 14 | 1 1 1 1 . 1 . 1 . 1 . 1 . 1 . 1 . 1 . 1 . 1 . 1 . . Unknown Exits Taken . | . . . . . . . . . . . . . . . . . . . . . . . . . . Scrap Searched . | . . . . . . . . . . . . . . . . . . . . . . . . . . Spaces Dug 105 | . . . . . . . . . . . . . 2 . 1 . 1 14 1 25 20 25 . 16 . Terrain Destroyed 281 | . 8 9 . . 2 37 . . . . 1 2 2 3 34 3 2 17 3 29 25 32 . 18 54 Melee . | . . . . . . . . . . . . . . . . . . . . . . . . . . Projectile 152 | . . . . . 2 4 . . . . 1 2 2 3 7 3 2 17 3 29 25 32 . 18 2 AOE 129 | . 8 9 . . . 33 . . . . . . . . 27 . . . . . . . . . 52 Terrain Rammed . | . . . . . . . . . . . . . . . . . . . . . . . . . . Walls Destroyed . | . . . . . . . . . . . . . . . . . . . . . . . . . . Machines Disabled . | . . . . . . . . . . . . . . . . . . . . . . . . . . Actions | -11 -10 -9 -8 -8 -8 -8 -7 -7 -6 -6 -5 -5 -5 -5 -4 -4 -3 -3 -3 -3 -2 -2 -2 -2 -1 --------- Run | Yrd Mat Mat Mat Gar Mat Gar Fac Gar Fac Gar Fac Gar Fac Gar Fac Gar Res Gar Res Gar Res Gar Res Gar Acc Total 15651 | 106 302 394 551 918 432 932 620 999 549 574 250 634 163 953 392 1187 142 898 550 1299 591 753 284 718 460 Wait 1493 | . 42 21 35 17 . 64 40 91 26 30 32 111 39 44 21 52 26 119 76 178 155 50 105 55 64 Move 11766 | 82 233 305 355 809 374 680 511 773 474 465 186 407 121 756 308 936 102 660 401 921 360 585 151 507 304 Hop . | . . . . . . . . . . . . . . . . . . . . . . . . . . Pick Up 193 | 8 7 9 18 18 5 7 10 9 8 9 5 10 . 5 4 12 . 8 7 13 3 8 . 6 4 Fast Attach 72 | 8 . 2 6 5 4 4 6 3 1 2 2 . . 3 5 5 1 1 1 1 3 4 1 1 3 Attach 37 | . 1 2 6 2 . 3 2 . 2 . 2 2 . 1 1 4 1 . . . 1 1 . 2 4 Detach 27 | 1 . . 2 . . 1 2 . 1 1 2 . . 3 2 2 1 . . 1 3 3 . 2 . Swap 94 | . 2 4 8 4 3 17 3 4 3 7 1 3 . 2 1 3 2 4 1 4 . 4 2 5 7 Drop 173 | . 1 9 10 26 12 4 8 6 6 9 5 8 . 7 6 13 1 5 9 9 5 5 1 4 4 Fire 1212 | 7 16 42 111 10 33 88 34 50 28 24 14 46 3 68 44 75 7 65 55 98 60 79 24 61 70 Melee . | . . . . . . . . . . . . . . . . . . . . . . . . . . Ram 2 | . . . . . . . . 1 . 1 . . . . . . . . . . . . . . . Kick . | . . . . . . . . . . . . . . . . . . . . . . . . . . Crush . | . . . . . . . . . . . . . . . . . . . . . . . . . . Escape Stasis 326 | . . . . . . 24 . 62 . 24 . 40 . 16 . 40 . 8 . 32 . 8 . 72 . Rewire 256 | . . . . 27 1 40 4 . . 2 1 7 . 48 . 45 1 28 . 42 1 6 . 3 . Trap . | . . . . . . . . . . . . . . . . . . . . . . . . . . Miscellaneous . | . . . . . . . . . . . . . . . . . . . . . . . . . . Route ------- -11/Scrapyard -10/Materials -9/Materials (discovered 2 exits: *Mat / *Min) -8/Materials (discovered 4 exits: Fac x3 / Gar) -8/Garrison (discovered 3 exits: *Mat x3) -8/Materials -8/Garrison (discovered 3 exits: *Fac x3) -7/Factory (discovered 3 exits: *Low x2 / Gar) -7/Garrison (discovered 3 exits: *Fac x3) -6/Factory (discovered 3 exits: *Fac x2 / Gar) -6/Garrison (discovered 3 exits: *Fac x3) -5/Factory -5/Garrison (discovered 3 exits: *Fac x3) -5/Factory -5/Garrison (discovered 3 exits: *Fac x3) -4/Factory (discovered 3 exits: *Res / *Upp / Gar) -4/Garrison (discovered 3 exits: *Res x3) -3/Research -3/Garrison (discovered 3 exits: *Res x3) -3/Research -3/Garrison (discovered 3 exits: *Res x3) -2/Research -2/Garrison (discovered 3 exits: *Res x3) -2/Research -2/Garrison (discovered 3 exits: *Acc x3) -1/Access To Epsilon Eridani History --------- Turn | Location | Event 2 | -11/Scrapyard | Met Revision 17 3 | -11/Scrapyard | Identified exit to Materials 3 | -11/Scrapyard | Discovered exit to Materials (range 16) 121 | -11/Scrapyard | Entered Materials 121 | -10/Materials | Evolved 1 slot: Utility x1 303 | -10/Materials | Identified exit to Materials 303 | -10/Materials | Discovered exit to Materials (range 6) 308 | -10/Materials | Build established: Hacker-Mutant 451 | -10/Materials | Entered another Materials area 451 | -9/Materials | Evolved 2 slots: Utility x2 787 | -9/Materials | Identified exit to Materials 787 | -9/Materials | Discovered exit to Materials (range 14) 813 | -9/Materials | Identified exit to Mines 813 | -9/Materials | Discovered exit to Mines (range 14) 913 | -9/Materials | Build established: Scavenger-Mutant 956 | -9/Materials | Entered another Materials area 956 | -8/Materials | Evolved 2 slots: Propulsion x1, Utility x1 1052 | -8/Materials | Identified exit to Factory 1571 | -8/Materials | Garrison activated, responded to threat 1677 | -8/Materials | Build established: Hacker-Mutant 1813 | -8/Materials | Identified exit to Garrison 1814 | -8/Materials | Entered Garrison 1814 | -8/Garrison | Discovered recently destroyed garrison 1917 | -8/Garrison | Garrison Relay disabled 2058 | -8/Garrison | Installed Relay Interface Framework 2149 | -8/Garrison | Identified exit to Materials 2149 | -8/Garrison | Discovered exit to Materials (range 5) 2253 | -8/Garrison | Garrison Relay disabled 2433 | -8/Garrison | Discovered exit to Materials (range 11) 2500 | -8/Garrison | Build established: Bothacker-Mutant 2522 | -8/Garrison | Garrison Relay disabled 2538 | -8/Garrison | Garrison Relay disabled 2668 | -8/Garrison | Discovered exit to Materials (range 11) 2674 | -8/Garrison | Learned Materials security intel 2733 | -8/Garrison | Expanded RIF knowledge: Coupler Efficiency 2767 | -8/Garrison | Garrison Relay disabled 2928 | -8/Garrison | Entered Materials 2928 | -8/Materials | Accompanied by 5 allies 3243 | -8/Materials | Lost 5 allies 3517 | -8/Materials | Identified exit to Garrison 3518 | -8/Materials | Entered Garrison 3669 | -8/Garrison | Garrison Relay disabled 3676 | -8/Garrison | Triggered checkpoint 3704 | -8/Garrison | Discovered exit to Factory (range 88) 3704 | -8/Garrison | Discovered exit to Factory (range 69) 3704 | -8/Garrison | Discovered exit to Factory (range 53) 3874 | -8/Garrison | Triggered checkpoint 3923 | -8/Garrison | Garrison Relay disabled 3932 | -8/Garrison | Triggered checkpoint 3971 | -8/Garrison | P-60 Hacker assimilated allied Soldier 3a 4030 | -8/Garrison | Expanded RIF knowledge: Command Fork 4056 | -8/Garrison | P-60 Hacker assimilated allied Trooper 3b 4130 | -8/Garrison | Triggered checkpoint 4320 | -8/Garrison | Triggered checkpoint 4378 | -8/Garrison | Triggered checkpoint 4394 | -8/Garrison | Garrison Relay disabled 4496 | -8/Garrison | Triggered checkpoint 4566 | -8/Garrison | Learned Factory security intel 4592 | -8/Garrison | Triggered checkpoint 4619 | -8/Garrison | Garrison Relay disabled 4620 | -8/Garrison | Triggered checkpoint 4662 | -8/Garrison | Expanded RIF knowledge: Hotswap 4760 | -8/Garrison | Entered Factory 4760 | -7/Factory | Accompanied by 8 allies 4760 | -7/Factory | Evolved 2 slots: Utility x2 4936 | -7/Factory | Build established: Botlord-Mutant 5086 | -7/Factory | Identified exit to Lower Caves 5086 | -7/Factory | Discovered exit to Lower Caves (range 3) 5375 | -7/Factory | Fabricated Cargo Storage Unit (x1) 5475 | -7/Factory | Discovered exit to Lower Caves (range 13) 5556 | -7/Factory | Identified exit to Garrison 5577 | -7/Factory | Entered Garrison 5577 | -7/Garrison | Accompanied by 14 allies 5609 | -7/Garrison | Triggered checkpoint 5625 | -7/Garrison | Garrison Relay disabled 5761 | -7/Garrison | Triggered checkpoint 5791 | -7/Garrison | Triggered checkpoint 5921 | -7/Garrison | Triggered checkpoint 5957 | -7/Garrison | Identified exit to Factory 5957 | -7/Garrison | Discovered exit to Factory (range 10) 6010 | -7/Garrison | Garrison Relay disabled 6207 | -7/Garrison | Triggered checkpoint 6269 | -7/Garrison | Discovered exit to Factory (range 16) 6344 | -7/Garrison | Lost 3 allies 6469 | -7/Garrison | Triggered checkpoint 6522 | -7/Garrison | Expanded RIF knowledge: Signal Jamming 6538 | -7/Garrison | Garrison Relay disabled 6695 | -7/Garrison | Triggered checkpoint 6750 | -7/Garrison | Found embedded Infiltrators 6783 | -7/Garrison | Triggered checkpoint 6796 | -7/Garrison | Discovered exit to Factory (range 12) 6970 | -7/Garrison | Entered Factory 6970 | -6/Factory | Accompanied by 11 allies 6970 | -6/Factory | Evolved 2 slots: Power x1, Utility x1 7261 | -6/Factory | Identified exit to Factory 7261 | -6/Factory | Discovered exit to Factory (range 18) 7283 | -6/Factory | Discovered exit to Factory (range 16) 7799 | -6/Factory | Identified exit to Garrison 7821 | -6/Factory | Entered Garrison 7821 | -6/Garrison | Warlord forces raided the area 7821 | -6/Garrison | Accompanied by 12 allies 7897 | -6/Garrison | Garrison Relay disabled 7909 | -6/Garrison | Triggered checkpoint 7928 | -6/Garrison | Lost 3 allies 7933 | -6/Garrison | Triggered checkpoint 7933 | -6/Garrison | Triggered checkpoint 8026 | -6/Garrison | Spotted B-75 Beast 8039 | -6/Garrison | Allies destroyed B-75 Beast 8159 | -6/Garrison | Triggered checkpoint 8169 | -6/Garrison | Triggered checkpoint 8172 | -6/Garrison | Warlord forces retreated 8194 | -6/Garrison | Discovered exit to Factory (range 13) 8194 | -6/Garrison | Discovered exit to Factory (range 91) 8194 | -6/Garrison | Discovered exit to Factory (range 53) 8208 | -6/Garrison | Garrison Relay disabled 8302 | -6/Garrison | Expanded RIF knowledge: Autooverride 8500 | -6/Garrison | Spotted Executioner 8500 | -6/Garrison | Spotted Executioner 8505 | -6/Garrison | Triggered checkpoint 8514 | -6/Garrison | Destroyed Executioner 8518 | -6/Garrison | Allies destroyed Executioner 8528 | -6/Garrison | Rewired Striker 8692 | -6/Garrison | Entered Factory 8692 | -5/Factory | Accompanied by 11 allies 8692 | -5/Factory | Evolved 2 slots: Utility x2 8756 | -5/Factory | Spotted B-75 Beast 8766 | -5/Factory | Garrison activated, responded to threat 8774 | -5/Factory | Allies destroyed B-75 Beast 8995 | -5/Factory | Fabricated Hvy. Armor Plating (x1) 9041 | -5/Factory | Identified exit to Garrison 9061 | -5/Factory | Entered Garrison 9061 | -5/Garrison | Accompanied by 10 allies 9092 | -5/Garrison | Identified exit to Factory 9092 | -5/Garrison | Discovered exit to Factory (range 50) 9092 | -5/Garrison | Discovered exit to Factory (range 74) 9092 | -5/Garrison | Discovered exit to Factory (range 62) 9095 | -5/Garrison | Triggered checkpoint 9098 | -5/Garrison | Found embedded Infiltrators 9120 | -5/Garrison | Garrison Relay disabled 9224 | -5/Garrison | Spotted B-75 Beast 9231 | -5/Garrison | Triggered checkpoint 9241 | -5/Garrison | Triggered checkpoint 9245 | -5/Garrison | Allies destroyed B-75 Beast 9246 | -5/Garrison | Triggered checkpoint 9252 | -5/Garrison | Triggered checkpoint 9334 | -5/Garrison | Garrison Relay disabled 9371 | -5/Garrison | Triggered checkpoint 9415 | -5/Garrison | Expanded RIF knowledge: Autoassimilate 9557 | -5/Garrison | Garrison Relay disabled 9635 | -5/Garrison | Spotted B-75 Beast 9658 | -5/Garrison | Allies destroyed B-75 Beast 9684 | -5/Garrison | Found Relay Coupler [Proto] 9687 | -5/Garrison | Found Relay Coupler [Proto] 9690 | -5/Garrison | Found Relay Coupler [Proto] 9694 | -5/Garrison | Found Relay Coupler [Proto] 9839 | -5/Garrison | Triggered checkpoint 9864 | -5/Garrison | Garrison Relay disabled 9974 | -5/Garrison | Entered Factory 9974 | -5/Factory | Accompanied by 17 allies 10172 | -5/Factory | Identified exit to Garrison 10213 | -5/Factory | Entered Garrison 10213 | -5/Garrison | Accompanied by 17 allies 10231 | -5/Garrison | Triggered checkpoint 10319 | -5/Garrison | P-70 Sage assimilated allied Slayer 6a 10326 | -5/Garrison | Triggered checkpoint 10328 | -5/Garrison | P-70 Sage assimilated allied J9-OIW(b) 10329 | -5/Garrison | Triggered checkpoint 10330 | -5/Garrison | Triggered checkpoint 10366 | -5/Garrison | Lost 4 allies 10411 | -5/Garrison | Spotted B-75 Beast 10433 | -5/Garrison | Allies destroyed B-75 Beast 10437 | -5/Garrison | Triggered checkpoint 10463 | -5/Garrison | Lost 3 allies 10547 | -5/Garrison | Triggered checkpoint 10609 | -5/Garrison | Identified exit to Factory 10609 | -5/Garrison | Discovered exit to Factory (range 16) 10763 | -5/Garrison | Triggered checkpoint 10809 | -5/Garrison | Lost 3 allies 10813 | -5/Garrison | Garrison Relay disabled 10877 | -5/Garrison | Triggered checkpoint 10971 | -5/Garrison | Triggered checkpoint 11008 | -5/Garrison | Lost 4 allies 11187 | -5/Garrison | Expanded RIF knowledge: Crosswire 11221 | -5/Garrison | Discovered exit to Factory (range 12) 11264 | -5/Garrison | Discovered exit to Factory (range 66) 11264 | -5/Garrison | Discovered exit to Factory (range 12) 11264 | -5/Garrison | Discovered exit to Factory (range 42) 11399 | -5/Garrison | Garrison Relay disabled 11676 | -5/Garrison | Entered Factory 11676 | -4/Factory | Accompanied by 10 allies 11676 | -4/Factory | Evolved 2 slots: Utility x2 11936 | -4/Factory | Lost 5 allies 12041 | -4/Factory | Identified exit to Research 12041 | -4/Factory | Discovered exit to Research (range 9) 12228 | -4/Factory | Identified exit to Upper Caves 12228 | -4/Factory | Discovered exit to Upper Caves (range 7) 12281 | -4/Factory | Identified exit to Garrison 12285 | -4/Factory | Entered Garrison 12285 | -4/Garrison | Accompanied by 5 allies 12317 | -4/Garrison | Build established: Botlord-Skirmisher 12337 | -4/Garrison | Triggered checkpoint 12370 | -4/Garrison | Learned Research security intel 12377 | -4/Garrison | Garrison Relay disabled 12502 | -4/Garrison | Spotted B-86 Titan 12572 | -4/Garrison | Lost 11 allies 12574 | -4/Garrison | Destroyed B-86 Titan 12678 | -4/Garrison | Discovered exit to Research (range 11) 12761 | -4/Garrison | Triggered checkpoint 12809 | -4/Garrison | Build established: Botlord-Mutant 12864 | -4/Garrison | Expanded RIF knowledge: Structural Interface 12999 | -4/Garrison | Triggered checkpoint 13002 | -4/Garrison | Garrison Relay disabled 13187 | -4/Garrison | Triggered checkpoint 13229 | -4/Garrison | Triggered checkpoint 13246 | -4/Garrison | Garrison Relay disabled 13303 | -4/Garrison | Lost 6 allies 13359 | -4/Garrison | Triggered checkpoint 13398 | -4/Garrison | Lost 4 allies 13444 | -4/Garrison | Garrison Relay disabled 13486 | -4/Garrison | Discovered exit to Research (range 17) 13654 | -4/Garrison | Triggered checkpoint 13663 | -4/Garrison | Triggered checkpoint 13733 | -4/Garrison | Triggered checkpoint 13817 | -4/Garrison | Triggered checkpoint 13831 | -4/Garrison | Discovered exit to Research (range 16) 14089 | -4/Garrison | Entered Research 14089 | -3/Research | Accompanied by 11 allies 14089 | -3/Research | Evolved 2 slots: Propulsion x1, Utility x1 14198 | -3/Research | Found Quantum Capacitor 14276 | -3/Research | Identified exit to Garrison 14280 | -3/Research | Entered Garrison 14280 | -3/Garrison | Accompanied by 15 allies 14356 | -3/Garrison | Triggered checkpoint 14406 | -3/Garrison | Rescued a captive Derelict 14500 | -3/Garrison | Garrison Relay disabled 14505 | -3/Garrison | Garrison Relay disabled 14630 | -3/Garrison | Triggered checkpoint 14645 | -3/Garrison | Triggered checkpoint 14666 | -3/Garrison | Triggered checkpoint 14670 | -3/Garrison | Triggered checkpoint 14718 | -3/Garrison | Lost 5 allies 14843 | -3/Garrison | Lost 4 allies 14865 | -3/Garrison | Identified exit to Research 14865 | -3/Garrison | Discovered exit to Research (range 8) 14866 | -3/Garrison | Triggered checkpoint 14892 | -3/Garrison | Found Fusion Bomb Launcher 14912 | -3/Garrison | Garrison Relay disabled 15010 | -3/Garrison | Triggered checkpoint 15028 | -3/Garrison | Triggered checkpoint 15050 | -3/Garrison | Garrison Relay disabled 15183 | -3/Garrison | Discovered exit to Research (range 16) 15184 | -3/Garrison | Triggered checkpoint 15233 | -3/Garrison | Expanded RIF knowledge: Coupler Efficiency 15353 | -3/Garrison | Discovered exit to Research (range 58) 15353 | -3/Garrison | Discovered exit to Research (range 20) 15353 | -3/Garrison | Discovered exit to Research (range 53) 15474 | -3/Garrison | Entered Research 15474 | -3/Research | Accompanied by 23 allies 15588 | -3/Research | Fabricated Arm. Huge Wheel (x2) 15675 | -3/Research | Found Hellfire Missile Launcher 15677 | -3/Research | Found Hellfire Missile Launcher 15887 | -3/Research | P-80 Master assimilated allied Veteran 8l 15889 | -3/Research | P-80 Master assimilated allied Veteran 8j 15931 | -3/Research | Lost 3 allies 16129 | -3/Research | Identified exit to Garrison 16200 | -3/Research | Entered Garrison 16200 | -3/Garrison | Accompanied by 26 allies 16234 | -3/Garrison | Triggered checkpoint 16277 | -3/Garrison | Garrison Relay disabled 16390 | -3/Garrison | Spotted B-86 Titan 16402 | -3/Garrison | Triggered checkpoint 16403 | -3/Garrison | Learned Research security intel 16420 | -3/Garrison | Triggered checkpoint 16420 | -3/Garrison | Triggered checkpoint 16430 | -3/Garrison | Allies destroyed B-86 Titan 16458 | -3/Garrison | Lost 6 allies 16537 | -3/Garrison | Build established: Commander-Mutant 16554 | -3/Garrison | Expanded RIF knowledge: Zone Cloak 16580 | -3/Garrison | Identified exit to Research 16580 | -3/Garrison | Discovered exit to Research (range 11) 16592 | -3/Garrison | Triggered checkpoint 16603 | -3/Garrison | Garrison Relay disabled 16705 | -3/Garrison | Found Relay Coupler [Proto] 16707 | -3/Garrison | Found Relay Coupler [Proto] 16709 | -3/Garrison | Found Relay Coupler [Proto] 16711 | -3/Garrison | Found Relay Coupler [Proto] 16856 | -3/Garrison | Triggered checkpoint 16900 | -3/Garrison | Discovered exit to Research (range 11) 16921 | -3/Garrison | Build established: Botlord-Mutant 16934 | -3/Garrison | Triggered checkpoint 16942 | -3/Garrison | Garrison Relay disabled 16991 | -3/Garrison | Spotted Striker 16991 | -3/Garrison | Spotted Striker 16998 | -3/Garrison | Assimilated Striker with formatsys_high 17004 | -3/Garrison | Assimilated Striker with formatsys_high 17289 | -3/Garrison | Build established: Commander-Mutant 17371 | -3/Garrison | Discovered exit to Research (range 13) 17376 | -3/Garrison | Triggered checkpoint 17482 | -3/Garrison | Triggered checkpoint 17489 | -3/Garrison | Garrison Relay disabled 17540 | -3/Garrison | Triggered checkpoint 17560 | -3/Garrison | Triggered checkpoint 17664 | -3/Garrison | Discovered exit to Research (range 72) 17664 | -3/Garrison | Discovered exit to Research (range 26) 17664 | -3/Garrison | Discovered exit to Research (range 96) 17905 | -3/Garrison | Entered Research 17905 | -2/Research | Accompanied by 37 allies 17905 | -2/Research | Evolved 2 slots: Utility x2 18321 | -2/Research | Garrison activated, responded to threat 18381 | -2/Research | Identified exit to Garrison 18405 | -2/Research | First assault squad dispatched 18618 | -2/Research | Lost 4 allies 18656 | -2/Research | Entered Garrison 18656 | -2/Garrison | Accompanied by 33 allies 18683 | -2/Garrison | Expanded RIF knowledge: Command Fork 18722 | -2/Garrison | Triggered checkpoint 18734 | -2/Garrison | Garrison Relay disabled 18775 | -2/Garrison | Heavy support dispatched to Research 18829 | -2/Garrison | Heavy support dispatched to Research 18850 | -2/Garrison | Triggered checkpoint 18850 | -2/Garrison | Spotted B-90 Cyclops 18857 | -2/Garrison | Triggered checkpoint 18871 | -2/Garrison | Triggered checkpoint 18873 | -2/Garrison | Allies destroyed B-90 Cyclops 18906 | -2/Garrison | Triggered checkpoint 18946 | -2/Garrison | Lost 6 allies 18978 | -2/Garrison | Identified exit to Research 18978 | -2/Garrison | Discovered exit to Research (range 15) 19015 | -2/Garrison | H-XX Assembler disabled 19016 | -2/Garrison | P-80 Master assimilated allied QX-OG8(g) 19122 | -2/Garrison | Triggered checkpoint 19151 | -2/Garrison | Garrison Relay disabled 19242 | -2/Garrison | Triggered checkpoint 19346 | -2/Garrison | Discovered exit to Research (range 10) 19392 | -2/Garrison | Triggered checkpoint 19405 | -2/Garrison | Garrison Relay disabled 19529 | -2/Garrison | Discovered exit to Research (range 10) 19538 | -2/Garrison | Triggered checkpoint 19724 | -2/Garrison | Entered Research 19724 | -2/Research | Accompanied by 30 allies 19984 | -2/Research | Identified exit to Garrison 20088 | -2/Research | Lost 11 allies 20100 | -2/Research | Entered Garrison 20100 | -2/Garrison | Accompanied by 20 allies 20222 | -2/Garrison | Triggered checkpoint 20222 | -2/Garrison | Spotted B-90 Cyclops 20223 | -2/Garrison | Triggered checkpoint 20223 | -2/Garrison | Triggered checkpoint 20245 | -2/Garrison | Destroyed B-90 Cyclops 20252 | -2/Garrison | Triggered checkpoint 20271 | -2/Garrison | Lost 4 allies 20330 | -2/Garrison | Build established: Botlord-Mutant 20347 | -2/Garrison | Lost 4 allies 20368 | -2/Garrison | Identified exit to Access 20368 | -2/Garrison | Discovered exit to Access (range 15) 20406 | -2/Garrison | Triggered checkpoint 20437 | -2/Garrison | Expanded RIF knowledge: Robot Detection 20456 | -2/Garrison | Garrison Relay disabled 20506 | -2/Garrison | Triggered checkpoint 20507 | -2/Garrison | P-80 Master assimilated allied Warden 9c 20629 | -2/Garrison | Discovered exit to Access (range 12) 20716 | -2/Garrison | Triggered checkpoint 20735 | -2/Garrison | Garrison Relay disabled 20909 | -2/Garrison | Discovered exit to Access (range 10) 20946 | -2/Garrison | Triggered checkpoint 20967 | -2/Garrison | Garrison Relay disabled 21121 | -2/Garrison | Entered Access 21121 | -1/Access | Accompanied by 21 allies 21121 | -1/Access | Evolved 2 slots: Utility x2 21275 | -1/Access | Found Centrium Heavy Armor Plating 21279 | -1/Access | Found Centrium Heavy Armor Plating 21346 | -1/Access | Spotted B-99 Colossus 21421 | -1/Access | Found Prototype Ballistic Gun 21422 | -1/Access | Identified Multirail 21436 | -1/Access | Lost 14 allies 21624 | -1/Access | Identified exit to Surface 21624 | -1/Access | Discovered exit to Surface (range 17) 21800 | *** | Escaped! Last Messages --------------- 21714_ K-01 Serf collects debris. 21723_ The unstable cave ceiling collapses. 21726_ K-01 Serf collects debris. 21727_ The unstable cave ceiling collapses. 21729_ K-01 Serf collects debris. 21731_ The unstable cave ceiling collapses. 21732_ K-01 Serf collects debris. 21736_ Acquired 99 matter. 21740_ K-01 Serf collects debris. 21740_ R-10 Processor collects Biometal Leg. 21741_ K-01 Serf collects debris. 21744_ R-10 Processor collects Biometal Leg. 21747_ K-01 Serf collects debris. 21753_ R-10 Processor collects Myomer Leg. 21755_ K-01 Serf collects debris. 21756_ R-10 Processor collects Hvy. Laser. 21763_ R-10 Processor collects Myomer Leg. 21767_ The unstable cave ceiling collapses. 21783_ K-01 Serf collects debris. [Achievement: Straight Shot] Map ----- +----------------------------------------------------+ | " " """"" % #? | | " = "" % ##? | | ! %[= #?? | | ![! # #?? | | = ! ###########+##?? | | ## = = ! % #?????????# #??? | | ?# [= % #???????###+#### | | ?#### ############# # # ## ###???????# | | ????#+????????????##### = # # ##????????# | | ???????????????????####* !# ##?????????# | | ???????????????????# != * ] ##??????????# | | ???????????????????# !*] ! #???????????# | | ???????????????????# !*! #???????????# | | ???????????????????# #???????????######## | | ???????????????????# #??????????????????? | | ???????????????????# #??????????????????? | | ???????????????????# #??????????????????? | | ???????????????????#" #??????????????????? | | ????????????????????" "#??????????????????? | | ????????????????????" "???????????????????? | | ???????????????????#"" x """#??????????????????? | | ???????????????????# g #??????????????????? | | ???????????????????# #??????????????????? | | ???????????????????# gY #??????????????????? | | ???????????????????# ""g #??????????????????? | | ???????????????????# g"@g #??????????????????? | | ???????????????????# gh #??????????????????? | | ???????????????????# #??????????????????? | | ???????????????????# #??????????????????? | | ???????????????????# #??????????????????? | | ???????????????????""""""""""""??????????????????? | | ?????????????????????????????????????????????????? | | ?????????????????????????????????????????????????? | | ?????????????????????????????????????????????????? | | ?????????????????????????????????????????????????? | | ?????????????????????????????????????????????????? | | ?????????????????????????????????????????????????? | | ?????????????????????????????????????????????????? | | ?????????????????????????????????????????????????? | | ?????????????????????????????????????????????????? | | ?????????????????????????????????????????????????? | | ?????????????????????????????????????????????????? | | ?????????????????????????????????????????????????? | | ?????????????????????????????????????????????????? | | ?????????????????????????????????????????????????? | | ?????????????????????????????????????????????????? | | ?????????????????????????????????????????????????? | | ?????????????????????????????????????????????????? | | ?????????????????????????????????????????????????? | | ?????????????????????????????????????????????????? | +----------------------------------------------------+ Best States ------------- Heat Dissipation 128 Coolant Potential 100 Energy Generation 45 Energy Capacity 600 Matter Stores 300 Matter Capacity 300 Sight Range 20 Robot Scan Range 16 Terrain Scan Density 10 Additional Mass Support 6 Corruption Block 20 Armor Coverage 600 Resistance: KI 35 Resistance: TH 35 Resistance: EX 35 Resistance: EM 35 Resistance: I 35 Resistance: S 35 Resistance: P 35 Propulsion Shielding 66 Utility Shielding 66 Evasion (%) 42 Targeting Accuracy 8 Matter Filtering 50 Offensive Hacking 30 Relay Coupler Types 8 Relay Coupler Value 237 Item Schematics ----------------- Cargo Storage Unit | -10/Materials | Hacked Hcp. Storage Unit | -10/Materials | Hacked Arm. Wheel | -9/Materials | Hacked Hvy. Armor Plating | -8/Materials | Hacked Arm. Huge Wheel | -7/Factory | Hacked Robot Schematics ------------------ None Fabricated ------------ Cargo Storage Unit | x1 | -7/Factory Hvy. Armor Plating | x1 | -5/Factory Arm. Huge Wheel | x2 | -3/Research Repaired ---------- Nothing Alien Tech Used ----------------- None Achievements -------------- Packrat Straight Shot Challenges ------------ None Game ------ Seed QuantumDisassembledPrototype Manual? 0 Play Time 04:39:08 Cumulative 174.8 hours Start 2025.05.23 @ 21:12:59 End 2025.05.24 @ 23:05:36 Sessions 3 Manual Loads 0 Difficulty Explorer Special Mode None Game No. 35 Rogue 0 Adventurer 0 Explorer 35 Win Type 0 Total 19 Types 6/1/4/1/1/1/1/2/1/1 Lore% 65 Gallery% 61 Achievement% 77 Wizard Run 0 Options --------- Layout 0 ASCII 0 Keyboard 1 Movement Numpad Keybinds 0 Fullscreen 1 Font 18/SmallcapsGlow Map View 76x50 Zoom Use 0% Tactical HUD 1 Map Filters NONE Filters BRIGHTNESS(125) Steam 1 RUN: c518bf70-9bd8-47e0-b2e9-7bc6d53b5518